[Event "Titled Tuesday Blitz May 10 Early 2022"]
[White "Maghsoodloo, Parham"]
[Black "Daneshvar, Bardiya"]
[WhiteFideId "12539929"]
[BlackFideId "12576468"]
[WhiteElo "2630"]
[BlackElo "2330"]
[Result "1-0"]
[Round "07"]
[TimeControl "180+1"]
[Date "2022.05.10"]
[WhiteClock "0:00:20"]
[BlackClock "0:00:03"]

1. Nf3 {[%clk 0:03:00]}  d5 {[%clk 0:02:59]} 2. b3 {[%clk 0:03:01]}  Bf5 {[%clk 0:02:56]} 3. d3 {[%clk 0:03:01]}  e6 {[%clk 0:02:54]} 4. Nbd2 {[%clk 0:03:01]}  Nf6 {[%clk 0:02:55]} 5. Bb2 {[%clk 0:03:01]}  h6 {[%clk 0:02:53]} 6. g3 {[%clk 0:02:58]}  Be7 {[%clk 0:02:51]} 7. Bg2 {[%clk 0:02:59]}  Bh7 {[%clk 0:02:51]} 8. O-O {[%clk 0:03:00]}  a5 {[%clk 0:02:50]} 9. a3 {[%clk 0:03:00]}  O-O {[%clk 0:02:48]} 10. Re1 {[%clk 0:02:58]}  Nfd7 {[%clk 0:02:25]} 11. e4 {[%clk 0:02:57]}  Bf6 {[%clk 0:02:25]} 12. d4 {[%clk 0:02:51]}  a4 {[%clk 0:02:18]} 13. b4 {[%clk 0:02:48]}  b5 {[%clk 0:02:10]} 14. Ne5 {[%clk 0:02:43]}  Nb6 {[%clk 0:02:03]} 15. Ng4 {[%clk 0:02:36]}  Be7 {[%clk 0:01:50]} 16. e5 {[%clk 0:02:31]}  Nc6 {[%clk 0:01:35]} 17. h4 {[%clk 0:02:27]}  Qd7 {[%clk 0:01:30]} 18. h5 {[%clk 0:02:21]}  Nc4 {[%clk 0:01:19]} 19. Nxc4 {[%clk 0:02:21]}  bxc4 {[%clk 0:01:20]} 20. c3 {[%clk 0:02:18]}  f5 {[%clk 0:01:16]} 21. exf6 {[%clk 0:02:17]}  Bxf6 {[%clk 0:01:16]} 22. Bc1 {[%clk 0:02:13]}  Rae8 {[%clk 0:01:09]} 23. Qxa4 {[%clk 0:02:03]}  Kh8 {[%clk 0:00:54]} 24. Bf4 {[%clk 0:01:55]}  Bf5 {[%clk 0:00:44]} 25. Nxf6 {[%clk 0:01:49]}  Rxf6 {[%clk 0:00:45]} 26. b5 {[%clk 0:01:46]}  Ne7 {[%clk 0:00:41]} 27. Qb4 {[%clk 0:01:37]}  Bg4 {[%clk 0:00:38]} 28. Qc5 {[%clk 0:01:32]}  Rxf4 {[%clk 0:00:34]} 29. gxf4 {[%clk 0:01:33]}  Rf8 {[%clk 0:00:31]} 30. b6 {[%clk 0:01:19]}  cxb6 {[%clk 0:00:20]} 31. Qxb6 {[%clk 0:01:20]}  Qe8 {[%clk 0:00:15]} 32. Rxe6 {[%clk 0:01:12]}  Bxe6 {[%clk 0:00:14]} 33. Qxe6 {[%clk 0:01:13]}  Qd8 {[%clk 0:00:12]} 34. Re1 {[%clk 0:01:06]}  Ng8 {[%clk 0:00:11]} 35. Qxd5 {[%clk 0:01:04]}  Qh4 {[%clk 0:00:09]} 36. Re4 {[%clk 0:00:52]}  Nf6 {[%clk 0:00:09]} 37. Qd6 {[%clk 0:00:52]}  Rg8 {[%clk 0:00:04]} 38. Re2 {[%clk 0:00:51]}  Nxh5 {[%clk 0:00:04]} 39. f5 {[%clk 0:00:47]}  Nf6 {[%clk 0:00:03]} 40. Qg3 {[%clk 0:00:40]}  Qh5 {[%clk 0:00:03]} 41. Qf3 {[%clk 0:00:38]}  Qg5 {[%clk 0:00:04]} 42. Re3 {[%clk 0:00:34]}  Ng4 {[%clk 0:00:04]} 43. Re6 {[%clk 0:00:30]}  Qc1+ {[%clk 0:00:04]} 44. Bf1 {[%clk 0:00:30]}  Nf6 {[%clk 0:00:05]} 45. d5 {[%clk 0:00:22]}  Qxa3 {[%clk 0:00:04]} 46. d6 {[%clk 0:00:20]}  Rd8 {[%clk 0:00:04]} 47. Qf4 {[%clk 0:00:21]}  Qxc3 {[%clk 0:00:04]} 48. Bxc4 {[%clk 0:00:21]}  Qb4 {[%clk 0:00:03]} 49. Rxf6 {[%clk 0:00:20]}  Qe1+ {[%clk 0:00:03]} 50. Kg2 {[%clk 0:00:20]}  gxf6 {[%clk 0:00:03]} 51. Qxh6# {[%clk 0:00:20]} 1-0


[Site "https://www.chess.com"]

[Event "Titled Tuesday Blitz May 10 Early 2022"]
[White "Markelova, Lubov"]
[Black "Derraugh, Geordie"]
[WhiteFideId "24131369"]
[BlackFideId "2603950"]
[WhiteElo "1863"]
[BlackElo "2116"]
[Result "0-1"]
[Round "07"]
[TimeControl "180+1"]
[Date "2022.05.11"]
[WhiteClock "0:00:10"]
[BlackClock "0:00:12"]

1. Nf3 {[%clk 0:03:00]}  c5 {[%clk 0:02:57]} 2. c4 {[%clk 0:03:01]}  Nc6 {[%clk 0:02:56]} 3. Nc3 {[%clk 0:03:01]}  e5 {[%clk 0:02:56]} 4. g3 {[%clk 0:03:00]}  g6 {[%clk 0:02:55]} 5. Bg2 {[%clk 0:03:01]}  Bg7 {[%clk 0:02:55]} 6. O-O {[%clk 0:03:02]}  Nge7 {[%clk 0:02:56]} 7. a3 {[%clk 0:03:01]}  O-O {[%clk 0:02:56]} 8. Rb1 {[%clk 0:02:59]}  d5 {[%clk 0:02:56]} 9. cxd5 {[%clk 0:02:57]}  Nxd5 {[%clk 0:02:57]} 10. Nxd5 {[%clk 0:02:55]}  Qxd5 {[%clk 0:02:56]} 11. d3 {[%clk 0:02:54]}  Qd6 {[%clk 0:02:42]} 12. Nd2 {[%clk 0:02:49]}  Be6 {[%clk 0:02:42]} 13. Ne4 {[%clk 0:02:47]}  Qe7 {[%clk 0:02:42]} 14. Be3 {[%clk 0:02:47]}  Nd4 {[%clk 0:02:41]} 15. Bxd4 {[%clk 0:02:33]}  exd4 {[%clk 0:02:35]} 16. Rc1 {[%clk 0:02:26]}  Rac8 {[%clk 0:02:34]} 17. f4 {[%clk 0:02:02]}  Rfe8 {[%clk 0:02:12]} 18. Bf3 {[%clk 0:01:55]}  Bd5 {[%clk 0:02:07]} 19. Qa4 {[%clk 0:01:28]}  b6 {[%clk 0:02:00]} 20. b4 {[%clk 0:01:26]}  c4 {[%clk 0:01:48]} 21. Nf6+ {[%clk 0:01:07]}  Bxf6 {[%clk 0:01:43]} 22. Bxd5 {[%clk 0:01:07]}  Qe3+ {[%clk 0:01:09]} 23. Kh1 {[%clk 0:01:00]}  Qxe2 {[%clk 0:00:50]} 24. Bxc4 {[%clk 0:00:55]}  Rxc4 {[%clk 0:00:37]} 25. dxc4 {[%clk 0:00:49]}  Qe4+ {[%clk 0:00:37]} 26. Kg1 {[%clk 0:00:49]}  d3 {[%clk 0:00:38]} 27. h4 {[%clk 0:00:18]}  Bd4+ {[%clk 0:00:26]} 28. Kh2 {[%clk 0:00:18]}  Qe2+ {[%clk 0:00:24]} 29. Kh3 {[%clk 0:00:18]}  h5 {[%clk 0:00:24]} 30. Qd1 {[%clk 0:00:17]}  Qe6+ {[%clk 0:00:23]} 31. Kh2 {[%clk 0:00:17]}  Qf5 {[%clk 0:00:22]} 32. Rg1 {[%clk 0:00:12]}  Bxg1+ {[%clk 0:00:18]} 33. Kxg1 {[%clk 0:00:11]}  Re2 {[%clk 0:00:16]} 34. Qf1 {[%clk 0:00:10]}  Qg4 {[%clk 0:00:12]} 0-1


[Site "https://www.chess.com"]

[Event "Titled Tuesday Blitz May 10 Early 2022"]
[White "Meshkovs, Nikita"]
[Black "Jobava, Baadur"]
[WhiteFideId "11602740"]
[BlackFideId "13601520"]
[WhiteElo "2506"]
[BlackElo "2617"]
[Result "0-1"]
[Round "07"]
[TimeControl "180+1"]
[Date "2022.05.10"]
[WhiteClock "0:00:07"]
[BlackClock "0:01:43"]

1. d4 {[%clk 0:03:00]}  d5 {[%clk 0:02:59]} 2. c4 {[%clk 0:02:59]}  c6 {[%clk 0:02:59]} 3. cxd5 {[%clk 0:02:54]}  cxd5 {[%clk 0:02:59]} 4. Nc3 {[%clk 0:02:53]}  Nf6 {[%clk 0:03:00]} 5. Bf4 {[%clk 0:02:52]}  Nc6 {[%clk 0:03:00]} 6. e3 {[%clk 0:02:52]}  a6 {[%clk 0:03:01]} 7. Bd3 {[%clk 0:02:51]}  Bg4 {[%clk 0:03:01]} 8. f3 {[%clk 0:02:51]}  Bd7 {[%clk 0:03:01]} 9. Rc1 {[%clk 0:02:49]}  e6 {[%clk 0:03:01]} 10. Nge2 {[%clk 0:02:49]}  Nh5 {[%clk 0:03:00]} 11. Bg3 {[%clk 0:02:44]}  Nxg3 {[%clk 0:02:59]} 12. hxg3 {[%clk 0:02:44]}  g6 {[%clk 0:02:59]} 13. a3 {[%clk 0:02:26]}  Rc8 {[%clk 0:02:59]} 14. Na4 {[%clk 0:02:08]}  Bd6 {[%clk 0:02:55]} 15. Nc5 {[%clk 0:02:05]}  Qb6 {[%clk 0:02:46]} 16. b4 {[%clk 0:01:52]}  Ne7 {[%clk 0:02:45]} 17. g4 {[%clk 0:01:42]}  Bc6 {[%clk 0:02:41]} 18. f4 {[%clk 0:01:30]}  Qd8 {[%clk 0:02:35]} 19. Kf2 {[%clk 0:01:18]}  Rc7 {[%clk 0:02:35]} 20. Ng1 {[%clk 0:01:16]}  Ng8 {[%clk 0:02:21]} 21. Nf3 {[%clk 0:01:08]}  Nf6 {[%clk 0:02:21]} 22. Ne5 {[%clk 0:01:09]}  Bb5 {[%clk 0:02:16]} 23. g5 {[%clk 0:00:55]}  Bxd3 {[%clk 0:02:15]} 24. Qxd3 {[%clk 0:00:42]}  Bxc5 {[%clk 0:02:07]} 25. dxc5 {[%clk 0:00:30]}  Ne4+ {[%clk 0:02:07]} 26. Kg1 {[%clk 0:00:25]}  O-O {[%clk 0:02:02]} 27. Qd4 {[%clk 0:00:21]}  Ng3 {[%clk 0:01:55]} 28. Kf2 {[%clk 0:00:17]}  Nxh1+ {[%clk 0:01:52]} 29. Rxh1 {[%clk 0:00:18]}  f6 {[%clk 0:01:53]} 30. gxf6 {[%clk 0:00:19]}  Qxf6 {[%clk 0:01:53]} 31. Ke2 {[%clk 0:00:15]}  Qf5 {[%clk 0:01:50]} 32. Kd2 {[%clk 0:00:15]}  Qe4 {[%clk 0:01:49]} 33. Qxe4 {[%clk 0:00:10]}  dxe4 {[%clk 0:01:50]} 34. Kc3 {[%clk 0:00:10]}  Rd8 {[%clk 0:01:51]} 35. g4 {[%clk 0:00:06]}  Kg7 {[%clk 0:01:51]} 36. g5 {[%clk 0:00:06]}  b6 {[%clk 0:01:43]} 37. c6 {[%clk 0:00:05]}  Rd5 {[%clk 0:01:41]} 38. a4 {[%clk 0:00:05]}  b5 {[%clk 0:01:41]} 39. axb5 {[%clk 0:00:05]}  axb5 {[%clk 0:01:42]} 40. Ra1 {[%clk 0:00:05]}  Rxe5 {[%clk 0:01:42]} 41. fxe5 {[%clk 0:00:06]}  Rxc6+ {[%clk 0:01:43]} 42. Kd4 {[%clk 0:00:07]}  Rc4# {[%clk 0:01:43]} 0-1


[Site "https://www.chess.com"]

[Event "Titled Tuesday Blitz May 10 Early 2022"]
[White "Migot, Tangi"]
[Black "Gallego Alcaraz, Andres Felipe"]
[WhiteFideId "662445"]
[BlackFideId "4402669"]
[WhiteElo "2521"]
[BlackElo "2340"]
[Result "0-1"]
[Round "07"]
[TimeControl "180+1"]
[Date "2022.05.11"]
[WhiteClock "0:00:02"]
[BlackClock "0:01:15"]

1. Nf3 {[%clk 0:03:00]}  Nf6 {[%clk 0:03:00]} 2. g3 {[%clk 0:03:01]}  g6 {[%clk 0:03:00]} 3. Bg2 {[%clk 0:03:01]}  Bg7 {[%clk 0:03:01]} 4. O-O {[%clk 0:03:02]}  O-O {[%clk 0:03:02]} 5. d4 {[%clk 0:03:03]}  d5 {[%clk 0:03:03]} 6. Nc3 {[%clk 0:03:03]}  c6 {[%clk 0:03:01]} 7. Bf4 {[%clk 0:03:01]}  Ne4 {[%clk 0:02:57]} 8. Nxe4 {[%clk 0:02:54]}  dxe4 {[%clk 0:02:58]} 9. Ne5 {[%clk 0:02:54]}  f6 {[%clk 0:02:55]} 10. Nc4 {[%clk 0:02:54]}  f5 {[%clk 0:02:54]} 11. Be5 {[%clk 0:02:47]}  Be6 {[%clk 0:02:50]} 12. Bxg7 {[%clk 0:02:40]}  Kxg7 {[%clk 0:02:51]} 13. Ne3 {[%clk 0:02:40]}  Nd7 {[%clk 0:02:49]} 14. c4 {[%clk 0:02:34]}  Nf6 {[%clk 0:02:48]} 15. Qd2 {[%clk 0:02:29]}  Qb6 {[%clk 0:02:47]} 16. Rad1 {[%clk 0:02:23]}  Rfd8 {[%clk 0:02:46]} 17. Qc3 {[%clk 0:02:22]}  a5 {[%clk 0:02:43]} 18. d5 {[%clk 0:02:00]}  cxd5 {[%clk 0:02:35]} 19. cxd5 {[%clk 0:02:00]}  Bf7 {[%clk 0:02:33]} 20. g4 {[%clk 0:01:06]}  Rac8 {[%clk 0:02:31]} 21. Qe5 {[%clk 0:01:05]}  Qd6 {[%clk 0:02:18]} 22. Qxd6 {[%clk 0:01:05]}  Rxd6 {[%clk 0:02:19]} 23. gxf5 {[%clk 0:01:05]}  g5 {[%clk 0:02:19]} 24. b3 {[%clk 0:01:01]}  Rc5 {[%clk 0:02:08]} 25. Rd4 {[%clk 0:00:53]}  h6 {[%clk 0:01:59]} 26. Rfd1 {[%clk 0:00:52]}  Rb6 {[%clk 0:01:56]} 27. Nc4 {[%clk 0:00:48]}  Rb4 {[%clk 0:01:53]} 28. d6 {[%clk 0:00:43]}  exd6 {[%clk 0:01:52]} 29. Nxd6 {[%clk 0:00:41]}  Rxd4 {[%clk 0:01:49]} 30. Rxd4 {[%clk 0:00:42]}  Rc1+ {[%clk 0:01:49]} 31. Bf1 {[%clk 0:00:41]}  Bh5 {[%clk 0:01:48]} 32. Kg2 {[%clk 0:00:39]}  e3 {[%clk 0:01:34]} 33. fxe3 {[%clk 0:00:37]}  Ng4 {[%clk 0:01:34]} 34. Re4 {[%clk 0:00:23]}  Nxh2 {[%clk 0:01:30]} 35. Re7+ {[%clk 0:00:18]}  Kf8 {[%clk 0:01:30]} 36. f6 {[%clk 0:00:15]}  Nxf1 {[%clk 0:01:28]} 37. Rxb7 {[%clk 0:00:14]}  Nxe3+ {[%clk 0:01:28]} 38. Kf2 {[%clk 0:00:13]}  Rf1+ {[%clk 0:01:28]} 39. Kxe3 {[%clk 0:00:13]}  Rxf6 {[%clk 0:01:28]} 40. Ne4 {[%clk 0:00:13]}  Re6 {[%clk 0:01:28]} 41. Rb8+ {[%clk 0:00:12]}  Kg7 {[%clk 0:01:28]} 42. Kd4 {[%clk 0:00:12]}  Bg6 {[%clk 0:01:27]} 43. Nc5 {[%clk 0:00:12]}  Rxe2 {[%clk 0:01:26]} 44. Rb7+ {[%clk 0:00:13]}  Bf7 {[%clk 0:01:25]} 45. Ne4 {[%clk 0:00:11]}  Rxa2 {[%clk 0:01:22]} 46. Nd6 {[%clk 0:00:11]}  Rf2 {[%clk 0:01:22]} 47. Ra7 {[%clk 0:00:11]}  h5 {[%clk 0:01:22]} 48. Rxa5 {[%clk 0:00:11]}  Kg6 {[%clk 0:01:22]} 49. b4 {[%clk 0:00:08]}  h4 {[%clk 0:01:22]} 50. Ne4 {[%clk 0:00:09]}  Rf5 {[%clk 0:01:19]} 51. Ra6+ {[%clk 0:00:07]}  Kg7 {[%clk 0:01:18]} 52. Nd6 {[%clk 0:00:07]}  Rf4+ {[%clk 0:01:18]} 53. Kc5 {[%clk 0:00:06]}  h3 {[%clk 0:01:18]} 54. Ra2 {[%clk 0:00:06]}  g4 {[%clk 0:01:18]} 55. Rh2 {[%clk 0:00:06]}  Be6 {[%clk 0:01:18]} 56. b5 {[%clk 0:00:04]}  g3 {[%clk 0:01:18]} 57. Rh1 {[%clk 0:00:04]}  g2 {[%clk 0:01:18]} 58. Rg1 {[%clk 0:00:04]}  Rg4 {[%clk 0:01:15]} 59. b6 {[%clk 0:00:04]}  h2 {[%clk 0:01:16]} 60. b7 {[%clk 0:00:02]}  hxg1=Q+ {[%clk 0:01:15]} 0-1


[Site "https://www.chess.com"]

[Event "Titled Tuesday Blitz May 10 Early 2022"]
[White "Molina, Roberto Junio Brito"]
[Black "Piesik, Piotr"]
[WhiteFideId "2109450"]
[BlackFideId "1136194"]
[WhiteElo "2432"]
[BlackElo "2190"]
[Result "1/2-1/2"]
[Round "07"]
[TimeControl "180+1"]
[Date "2022.05.10"]
[WhiteClock "0:00:13"]
[BlackClock "0:00:09"]

1. d4 {[%clk 0:03:00]}  c5 {[%clk 0:02:55]} 2. d5 {[%clk 0:02:59]}  e5 {[%clk 0:02:31]} 3. e4 {[%clk 0:02:58]}  d6 {[%clk 0:02:28]} 4. Be2 {[%clk 0:02:58]}  Be7 {[%clk 0:02:27]} 5. Bg4 {[%clk 0:02:57]}  Nd7 {[%clk 0:02:26]} 6. Nc3 {[%clk 0:02:56]}  a6 {[%clk 0:02:24]} 7. a4 {[%clk 0:02:55]}  Bg5 {[%clk 0:02:24]} 8. Bxg5 {[%clk 0:02:54]}  Qxg5 {[%clk 0:02:25]} 9. h4 {[%clk 0:02:51]}  Qe7 {[%clk 0:02:23]} 10. Nge2 {[%clk 0:02:49]}  Ngf6 {[%clk 0:02:19]} 11. Bf3 {[%clk 0:02:49]}  Nf8 {[%clk 0:02:14]} 12. Qd2 {[%clk 0:02:45]}  h5 {[%clk 0:02:10]} 13. g3 {[%clk 0:02:42]}  Ng4 {[%clk 0:02:05]} 14. Bg2 {[%clk 0:02:35]}  f5 {[%clk 0:02:03]} 15. f3 {[%clk 0:02:24]}  Nf6 {[%clk 0:02:03]} 16. O-O-O {[%clk 0:02:13]}  fxe4 {[%clk 0:01:59]} 17. Nxe4 {[%clk 0:02:10]}  Nxe4 {[%clk 0:01:59]} 18. fxe4 {[%clk 0:02:11]}  b5 {[%clk 0:01:59]} 19. Qa5 {[%clk 0:02:02]}  Qd8 {[%clk 0:01:56]} 20. Qxd8+ {[%clk 0:02:00]}  Kxd8 {[%clk 0:01:56]} 21. Rdf1 {[%clk 0:02:00]}  Ke7 {[%clk 0:01:55]} 22. Nc3 {[%clk 0:01:58]}  Bd7 {[%clk 0:01:55]} 23. axb5 {[%clk 0:01:58]}  axb5 {[%clk 0:01:55]} 24. Kd2 {[%clk 0:01:57]}  b4 {[%clk 0:01:54]} 25. Nd1 {[%clk 0:01:57]}  Nh7 {[%clk 0:01:52]} 26. Bf3 {[%clk 0:01:57]}  Nf6 {[%clk 0:01:52]} 27. Ne3 {[%clk 0:01:54]}  Ra2 {[%clk 0:01:51]} 28. b3 {[%clk 0:01:51]}  g6 {[%clk 0:01:49]} 29. Ra1 {[%clk 0:01:47]}  Rha8 {[%clk 0:01:49]} 30. Rxa2 {[%clk 0:01:47]}  Rxa2 {[%clk 0:01:50]} 31. Re1 {[%clk 0:01:42]}  Bg4 {[%clk 0:01:38]} 32. Bg2 {[%clk 0:01:38]}  Ra8 {[%clk 0:01:34]} 33. Nc4 {[%clk 0:01:35]}  Bd7 {[%clk 0:01:30]} 34. Bf1 {[%clk 0:01:33]}  Rf8 {[%clk 0:01:25]} 35. Bd3 {[%clk 0:01:23]}  Ng4 {[%clk 0:01:25]} 36. Ne3 {[%clk 0:01:00]}  Rf3 {[%clk 0:01:15]} 37. Nxg4 {[%clk 0:00:54]}  Bxg4 {[%clk 0:01:16]} 38. Rg1 {[%clk 0:00:54]}  Kf6 {[%clk 0:01:05]} 39. Rg2 {[%clk 0:00:52]}  g5 {[%clk 0:00:56]} 40. Be2 {[%clk 0:00:48]}  Rc3 {[%clk 0:00:55]} 41. Rf2+ {[%clk 0:00:47]}  Kg6 {[%clk 0:00:55]} 42. Bd3 {[%clk 0:00:40]}  gxh4 {[%clk 0:00:52]} 43. gxh4 {[%clk 0:00:41]}  Kg7 {[%clk 0:00:51]} 44. Rf1 {[%clk 0:00:40]}  Bd7 {[%clk 0:00:43]} 45. Ra1 {[%clk 0:00:38]}  Kf8 {[%clk 0:00:38]} 46. Ra8+ {[%clk 0:00:36]}  Ke7 {[%clk 0:00:38]} 47. Rh8 {[%clk 0:00:33]}  Bg4 {[%clk 0:00:37]} 48. Rh7+ {[%clk 0:00:32]}  Kd8 {[%clk 0:00:29]} 49. Rg7 {[%clk 0:00:29]}  Ke8 {[%clk 0:00:27]} 50. Ra7 {[%clk 0:00:29]}  Kd8 {[%clk 0:00:27]} 51. Ra6 {[%clk 0:00:28]}  Ke7 {[%clk 0:00:27]} 52. Ra7+ {[%clk 0:00:27]}  Kd8 {[%clk 0:00:27]} 53. Ra1 {[%clk 0:00:28]}  Ke7 {[%clk 0:00:27]} 54. Rf1 {[%clk 0:00:28]}  Bd7 {[%clk 0:00:26]} 55. Rf2 {[%clk 0:00:26]}  Bg4 {[%clk 0:00:26]} 56. Rg2 {[%clk 0:00:26]}  Kf6 {[%clk 0:00:26]} 57. Rg1 {[%clk 0:00:25]}  Ke7 {[%clk 0:00:26]} 58. Ra1 {[%clk 0:00:25]}  Kd8 {[%clk 0:00:25]} 59. Ra7 {[%clk 0:00:24]}  Bd7 {[%clk 0:00:25]} 60. Ra8+ {[%clk 0:00:21]}  Ke7 {[%clk 0:00:25]} 61. Rg8 {[%clk 0:00:19]}  Bg4 {[%clk 0:00:25]} 62. Rg5 {[%clk 0:00:19]}  Kf7 {[%clk 0:00:23]} 63. Ke3 {[%clk 0:00:17]}  Bd1 {[%clk 0:00:14]} 64. Rg2 {[%clk 0:00:15]}  Bg4 {[%clk 0:00:13]} 65. Rf2+ {[%clk 0:00:15]}  Ke7 {[%clk 0:00:14]} 66. Rf1 {[%clk 0:00:16]}  Ke8 {[%clk 0:00:14]} 67. Rf6 {[%clk 0:00:15]}  Ke7 {[%clk 0:00:14]} 68. Rf1 {[%clk 0:00:16]}  Ke8 {[%clk 0:00:14]} 69. Rg1 {[%clk 0:00:16]}  Ke7 {[%clk 0:00:14]} 70. Kd2 {[%clk 0:00:16]}  Kd7 {[%clk 0:00:13]} 71. Rg2 {[%clk 0:00:17]}  Ke7 {[%clk 0:00:14]} 72. Rf2 {[%clk 0:00:18]}  Ke8 {[%clk 0:00:14]} 73. Rf6 {[%clk 0:00:18]}  Ke7 {[%clk 0:00:14]} 74. Rh6 {[%clk 0:00:18]}  Kd7 {[%clk 0:00:13]} 75. Rh7+ {[%clk 0:00:18]}  Kd8 {[%clk 0:00:13]} 76. Rg7 {[%clk 0:00:19]}  Ke8 {[%clk 0:00:13]} 77. Rg5 {[%clk 0:00:18]}  Kf7 {[%clk 0:00:12]} 78. Kc1 {[%clk 0:00:15]}  Ke8 {[%clk 0:00:09]} 79. Rg7 {[%clk 0:00:14]}  Kd8 {[%clk 0:00:09]} 80. Kd2 {[%clk 0:00:13]} 1/2-1/2


[Site "https://www.chess.com"]

[Event "Titled Tuesday Blitz May 10 Early 2022"]
[White "Morefield, Jason"]
[Black "Olsen, Filip Boe"]
[WhiteFideId "30920825"]
[BlackFideId "1440640"]
[WhiteElo "2171"]
[BlackElo "2247"]
[Result "0-1"]
[Round "07"]
[TimeControl "180+1"]
[Date "2022.05.11"]
[WhiteClock "0:00:03"]
[BlackClock "0:00:12"]

1. e4 {[%clk 0:03:00]}  c5 {[%clk 0:02:50]} 2. Nf3 {[%clk 0:03:00]}  d6 {[%clk 0:02:50]} 3. d4 {[%clk 0:02:59]}  cxd4 {[%clk 0:02:51]} 4. Nxd4 {[%clk 0:02:59]}  Nf6 {[%clk 0:02:52]} 5. Nc3 {[%clk 0:03:00]}  a6 {[%clk 0:02:52]} 6. h3 {[%clk 0:03:00]}  e5 {[%clk 0:02:52]} 7. Nde2 {[%clk 0:03:00]}  h5 {[%clk 0:02:52]} 8. Bg5 {[%clk 0:03:01]}  Be6 {[%clk 0:02:51]} 9. Ng3 {[%clk 0:03:01]}  Be7 {[%clk 0:02:49]} 10. Be2 {[%clk 0:03:01]}  Nbd7 {[%clk 0:02:48]} 11. O-O {[%clk 0:03:00]}  g6 {[%clk 0:02:46]} 12. Qd2 {[%clk 0:02:53]}  O-O {[%clk 0:02:43]} 13. Rfd1 {[%clk 0:02:51]}  b5 {[%clk 0:02:43]} 14. a3 {[%clk 0:02:51]}  Rc8 {[%clk 0:02:43]} 15. Bf3 {[%clk 0:02:47]}  Rc6 {[%clk 0:02:20]} 16. Rac1 {[%clk 0:02:44]}  Qc7 {[%clk 0:02:19]} 17. Nd5 {[%clk 0:02:43]}  Bxd5 {[%clk 0:02:14]} 18. exd5 {[%clk 0:02:43]}  Rc4 {[%clk 0:02:11]} 19. c3 {[%clk 0:02:22]}  Rc8 {[%clk 0:01:57]} 20. Kh1 {[%clk 0:01:26]}  Qd8 {[%clk 0:01:53]} 21. Be2 {[%clk 0:01:24]}  R4c5 {[%clk 0:01:50]} 22. Bf3 {[%clk 0:01:21]}  Nb6 {[%clk 0:01:42]} 23. b3 {[%clk 0:01:17]}  Nh7 {[%clk 0:01:28]} 24. Be3 {[%clk 0:01:14]}  Bg5 {[%clk 0:01:26]} 25. Bxg5 {[%clk 0:00:48]}  Nxg5 {[%clk 0:01:20]} 26. Qe3 {[%clk 0:00:35]}  Nxf3 {[%clk 0:01:05]} 27. Qxf3 {[%clk 0:00:35]}  f5 {[%clk 0:01:05]} 28. Nf1 {[%clk 0:00:27]}  Qf6 {[%clk 0:00:59]} 29. b4 {[%clk 0:00:20]}  e4 {[%clk 0:00:55]} 30. Qe3 {[%clk 0:00:17]}  Nc4 {[%clk 0:00:44]} 31. Qe1 {[%clk 0:00:16]}  R5c7 {[%clk 0:00:43]} 32. a4 {[%clk 0:00:16]}  Nb2 {[%clk 0:00:41]} 33. axb5 {[%clk 0:00:14]}  axb5 {[%clk 0:00:40]} 34. Rd2 {[%clk 0:00:06]}  Nd3 {[%clk 0:00:40]} 35. Rxd3 {[%clk 0:00:06]}  exd3 {[%clk 0:00:41]} 36. Qd2 {[%clk 0:00:04]}  Rxc3 {[%clk 0:00:40]} 37. Rd1 {[%clk 0:00:04]}  Qd4 {[%clk 0:00:33]} 38. Qg5 {[%clk 0:00:04]}  Kh7 {[%clk 0:00:32]} 39. Qe7+ {[%clk 0:00:04]}  Kh6 {[%clk 0:00:28]} 40. Qxd6 {[%clk 0:00:04]}  Qxf2 {[%clk 0:00:27]} 41. Ng3 {[%clk 0:00:03]}  Rc2 {[%clk 0:00:24]} 42. Rg1 {[%clk 0:00:02]}  h4 {[%clk 0:00:22]} 43. Nf1 {[%clk 0:00:01]}  d2 {[%clk 0:00:19]} 44. Qe5 {[%clk 0:00:01]}  d1=Q {[%clk 0:00:17]} 45. d6 {[%clk 0:00:01]}  Qxg2+ {[%clk 0:00:11]} 46. Rxg2 {[%clk 0:00:01]}  Qxf1+ {[%clk 0:00:12]} 47. Rg1 {[%clk 0:00:02]}  Qxh3+ {[%clk 0:00:12]} 48. Qh2 {[%clk 0:00:03]}  Qxh2# {[%clk 0:00:12]} 0-1


[Site "https://www.chess.com"]

[Event "Titled Tuesday Blitz May 10 Early 2022"]
[White "Msellek, Ilyass"]
[Black "Samunenkov, Ihor"]
[WhiteFideId "675938"]
[BlackFideId "14187086"]
[WhiteElo "2221"]
[BlackElo "2409"]
[Result "0-1"]
[Round "07"]
[TimeControl "180+1"]
[Date "2022.05.11"]
[WhiteClock "0:00:03"]
[BlackClock "0:00:06"]

1. d4 {[%clk 0:02:47]}  Nf6 {[%clk 0:02:56]} 2. Bg5 {[%clk 0:02:47]}  e6 {[%clk 0:02:52]} 3. e4 {[%clk 0:02:46]}  h6 {[%clk 0:02:49]} 4. Bxf6 {[%clk 0:02:45]}  Qxf6 {[%clk 0:02:50]} 5. c3 {[%clk 0:02:42]}  d6 {[%clk 0:02:49]} 6. Nf3 {[%clk 0:02:39]}  g6 {[%clk 0:02:49]} 7. Bd3 {[%clk 0:02:29]}  Bg7 {[%clk 0:02:47]} 8. O-O {[%clk 0:02:29]}  O-O {[%clk 0:02:47]} 9. Nbd2 {[%clk 0:02:29]}  Qe7 {[%clk 0:02:46]} 10. a4 {[%clk 0:02:28]}  a5 {[%clk 0:02:40]} 11. Re1 {[%clk 0:02:23]}  Nd7 {[%clk 0:02:38]} 12. Bf1 {[%clk 0:02:21]}  b6 {[%clk 0:02:36]} 13. h3 {[%clk 0:02:12]}  Bb7 {[%clk 0:02:35]} 14. Rc1 {[%clk 0:01:44]}  d5 {[%clk 0:02:12]} 15. e5 {[%clk 0:01:33]}  c5 {[%clk 0:02:08]} 16. Bb5 {[%clk 0:01:30]}  Rac8 {[%clk 0:02:03]} 17. Nf1 {[%clk 0:01:29]}  Bc6 {[%clk 0:01:45]} 18. Qb3 {[%clk 0:01:23]}  c4 {[%clk 0:01:40]} 19. Qd1 {[%clk 0:01:19]}  Bxb5 {[%clk 0:01:40]} 20. axb5 {[%clk 0:01:19]}  Ra8 {[%clk 0:01:19]} 21. Ra1 {[%clk 0:01:16]}  Rfc8 {[%clk 0:01:00]} 22. g4 {[%clk 0:01:14]}  g5 {[%clk 0:00:58]} 23. Ng3 {[%clk 0:01:14]}  Nf8 {[%clk 0:00:58]} 24. Nh5 {[%clk 0:01:15]}  Ng6 {[%clk 0:00:58]} 25. Nh2 {[%clk 0:00:58]}  Qd7 {[%clk 0:00:52]} 26. Qa4 {[%clk 0:00:46]}  Nf4 {[%clk 0:00:41]} 27. Nxf4 {[%clk 0:00:41]}  gxf4 {[%clk 0:00:41]} 28. Nf3 {[%clk 0:00:35]}  Bf8 {[%clk 0:00:37]} 29. Kf1 {[%clk 0:00:33]}  Be7 {[%clk 0:00:32]} 30. Ke2 {[%clk 0:00:31]}  Kf8 {[%clk 0:00:32]} 31. h4 {[%clk 0:00:30]}  Ke8 {[%clk 0:00:32]} 32. g5 {[%clk 0:00:30]}  hxg5 {[%clk 0:00:32]} 33. hxg5 {[%clk 0:00:31]}  Kd8 {[%clk 0:00:32]} 34. Rh1 {[%clk 0:00:31]}  Kc7 {[%clk 0:00:31]} 35. Rh7 {[%clk 0:00:32]}  Qe8 {[%clk 0:00:17]} 36. Rah1 {[%clk 0:00:18]}  Qg8 {[%clk 0:00:17]} 37. Qc2 {[%clk 0:00:18]}  Kd7 {[%clk 0:00:06]} 38. R1h6 {[%clk 0:00:16]}  Re8 {[%clk 0:00:03]} 39. g6 {[%clk 0:00:11]}  fxg6 {[%clk 0:00:03]} 40. Qxg6 {[%clk 0:00:09]}  Qxg6 {[%clk 0:00:04]} 41. Rxg6 {[%clk 0:00:10]}  a4 {[%clk 0:00:05]} 42. Rhh6 {[%clk 0:00:09]}  Bf8 {[%clk 0:00:03]} 43. Rh7+ {[%clk 0:00:07]}  Re7 {[%clk 0:00:03]} 44. Rxe7+ {[%clk 0:00:08]}  Bxe7 {[%clk 0:00:04]} 45. Rg7 {[%clk 0:00:04]}  a3 {[%clk 0:00:04]} 46. bxa3 {[%clk 0:00:04]}  Rxa3 {[%clk 0:00:05]} 47. Nh4 {[%clk 0:00:05]}  Ke8 {[%clk 0:00:02]} 48. Ng6 {[%clk 0:00:04]}  Bd8 {[%clk 0:00:02]} 49. Nxf4 {[%clk 0:00:02]}  Rxc3 {[%clk 0:00:02]} 50. Nxe6 {[%clk 0:00:03]}  Rc2+ {[%clk 0:00:02]} 51. Ke1 {[%clk 0:00:01]}  Be7 {[%clk 0:00:01]} 52. f4 {[%clk 0:00:02]}  Bb4+ {[%clk 0:00:01]} 53. Kd1 {[%clk 0:00:02]}  c3 {[%clk 0:00:02]} 54. f5 {[%clk 0:00:02]}  Rd2+ {[%clk 0:00:03]} 55. Kc1 {[%clk 0:00:03]}  Ba3+ {[%clk 0:00:03]} 56. Kb1 {[%clk 0:00:03]}  c2+ {[%clk 0:00:04]} 57. Ka2 {[%clk 0:00:03]}  c1=Q+ {[%clk 0:00:05]} 58. Kb3 {[%clk 0:00:04]}  Qb2+ {[%clk 0:00:05]} 59. Ka4 {[%clk 0:00:03]}  Qb4# {[%clk 0:00:06]} 0-1


[Site "https://www.chess.com"]